Cogmind - Beta 11.1 @@@ ROGUE MODE // 2022.11.06 @ 10:51:42 Player: Beepinex Result: Destroyed by as-15463 with Assembled Rifle Performance ------------- Evolutions (0) 0 Regions Visited (2) 400 Robots Destroyed (27) 135 Value Destroyed (454) 454 Prototype IDs (4) 80 Alien Tech Used (0) 0 Bonus (0) 0 TOTAL SCORE: 1069 Bonus ------- None Cogmind --------- Core Integrity 0/250 Matter 298/300 Energy 78/100 System Corruption 6% Temperature Hot (247) Movement Treading (160) Location -10/Mines Parts ------- > --- POWER (1) -------- (None) > --- PROPULSION (2) --- Light Treads Light Treads > --- UTILITY (2) ------ Large Storage Unit Seismic Detector > --- WEAPON (2) ------- EM Pulse Gun Light Assault Rifle > --- INVENTORY (15) --- Light Treads Light Treads Cooling System Cooling System High-capacity Matter Pod (94) Authchip [R/Combat] Tractor Beam Datajack Peak State ------------ > --- POWER ------------ Light Ion Engine > --- PROPULSION ------- Light Treads Light Treads > --- UTILITY ---------- Small Storage Unit Seismic Detector > --- WEAPON ----------- EM Pulse Gun Light Assault Rifle > --- INVENTORY -------- Ion Engine High-capacity Matter Pod Authchip [R/Combat] Tractor Beam EM Pulse Gun Grenade Launcher Datajack [Rating: 8] Favorites ----------- Power Light Ion Engine Engine Light Ion Engine Propulsion Light Treads Treads Light Treads Utility Seismic Detector Device Seismic Detector Storage Small Storage Unit Weapon EM Pulse Gun Energy Gun EM Pulse Gun Ballistic Gun Light Assault Rifle Launcher Grenade Launcher Special Weapon Welding Torch Build | -11 -10 -10 ------- Run | Scr Mat Min Slots Evolved . | . . . Power . | . . . Propulsion . | . . . Utility . | . . . Weapon . | . . . Parts Attached 33 | 7 17 9 Power 4 | . 3 1 Engine 4 | . 3 1 Core . | . . . Reactor . | . . . Propulsion 4 | 2 2 . Treads 4 | 2 2 . Leg . | . . . Wheel . | . . . Hover . | . . . Flight . | . . . Utility 3 | 2 1 . Device 1 | 1 . . Storage 2 | 1 1 . Processor . | . . . Hackware . | . . . Protection . | . . . Artifact . | . . . Weapon 22 | 3 11 8 Energy Gun 5 | 2 1 2 Energy Cannon . | . . . Ballistic Gun 9 | 1 5 3 Ballistic Cannon . | . . . Launcher 7 | . 4 3 Special Weapon 1 | . 1 . Impact Weapon . | . . . Slashing Weapon . | . . . Piercing Weapon . | . . . Special Melee Weapon . | . . . Unidentified Prototypes . | . . . Corrupted Parts 1 | . . 1 System Corruption 1 | . . 1 Parts Lost 5 | . 1 4 Power 2 | . 1 1 Propulsion . | . . . Utility . | . . . Weapon 3 | . . 3 Highest Loss Streak 2 | . 1 2 To Critical Strikes . | . . . Average Slot Usage (%) 99 | . 99 98 Engine 13 | . 13 14 Treads 27 | . 27 28 Device 14 | . 14 14 Storage 14 | . 14 14 Energy Gun 13 | . 13 13 Ballistic Gun 13 | . 13 10 Naked Turns . | . . . Heaviest Build 31 | 9 29 31 Greatest Support 40 | 40 40 40 Greatest Overweight (x) . | . . . Average Overweight (x) . | . . . Largest Inventory Capacity 15 | 8 15 15 Average Capacity 10 | 7 10 15 Most Carried 11 | 5 10 11 Average Carried 6 | 3 5 9 Final Capacity 15 | 8 15 15 Final Carried 10 | 4 10 8 Class Distribution -------------------- 100% | Mutant Dominant Class ---------------- Mutant | -10/Materials Mutant | -10/Mines Resources | -11 -10 -10 ----------- Run | Scr Mat Min Matter Collected 899 | 286 325 288 Remotely . | . . . Salvage Created 910 | 219 523 168 Parts 65 | 20 37 8 Haulers Intercepted 2 | . 2 . Recyclers Shooed 3 | 1 1 1 Parts Field Recycled . | . . . Retrieved Matter . | . . . Parts Self-Destructed . | . . . Prevented . | . . . Kills | -11 -10 -10 ------- Run | Scr Mat Min Combat Hostiles Destroyed 23 | . 10 13 Guns 13 | . 4 9 AOE 10 | . 6 4 Classes Destroyed 9 | 3 5 1 Worker 2 | 2 . . Builder 1 | . 1 . Tunneler 5 | 4 . 1 Hauler 2 | . 2 . Recycler 1 | 1 . . Watcher 3 | . 3 . Swarmer 6 | . 3 3 Grunt 7 | . 7 . Assembled 10 | . . 10 Best Kill Streak 8 | 3 4 8 Combat Bots Only 8 | . 3 8 Max Kills in Single Turn 3 | 2 3 2 Gunslinging 1 | . . 1 Exploded 3 | . 3 1 Melee . | . . . Uniques/NPCs Destroyed . | . . . Combat | -11 -10 -10 -------- Run | Scr Mat Min Damage Taken 1040 | . 363 677 Core 250 | . 85 165 Absorbed by Shields . | . . . Regen/Repaired (Parts) 89 | . 89 . Core Remaining (%) 100 | 100 . . Volleys Fired 109 | 19 46 44 Largest 2 | 2 2 2 Hottest 60 | 60 60 60 Shots Fired 182 | 38 78 66 Gun 153 | 38 64 51 Cannon . | . . . Launcher 22 | . 7 15 Special 7 | . 7 . Kinetic 73 | 19 32 22 Thermal 7 | . 7 . Explosive 22 | . 7 15 Electromagnetic 80 | 19 32 29 Robot Hit Streak 9 | 7 9 9 Robot Miss Streak 5 | 5 2 2 Penetration Max . | . . . Secondary Targets 5 | . 1 4 Max Gunslinging Chain 1 | . 1 1 Shots Hit Robots 93 | 19 44 30 Core Hits 65 | 11 25 29 Critical Kills . | . . . Critical Parts Destroyed . | . . . Critical Strikes . | . . . Melee Attacks . | . . . Impact . | . . . Slashing . | . . . Piercing . | . . . Sneak Attacks . | . . . Combat Hostiles . | . . . Follow-up Attacks . | . . . Damage Inflicted 1819 | 215 898 706 Guns 1017 | 215 482 320 Cannons . | . . . Explosions 800 | . 414 386 Melee . | . . . Ramming 2 | . 2 . Kinetic 339 | 88 145 106 Thermal 126 | . 126 . Explosive 674 | . 288 386 Electromagnetic 678 | 127 337 214 Impact . | . . . Slashing . | . . . Piercing . | . . . Highest Corruption 6 | . . 6 Average Corruption 5 | . . 5 Corruption Purged . | . . . Corruption Blocked . | . . . Effects 2 | . . 2 Matter Fused 1 | . . 1 Heat Flow Errors 1 | . . 1 Overload Shots . | . . . Overflow Damage 29 | . 9 20 Projectiles . | . . . Explosions 29 | . 9 20 Melee . | . . . Knockbacks . | . . . Impact . | . . . Kinetic . | . . . Secondary . | . . . Self-Inflicted Damage 271 | . 71 200 Shots 12 | . 3 9 Rammed 1 | . 1 . Targets Rammed 1 | . 1 . Kicked . | . . . Crushed . | . . . Highest Temperature 247 | 20 94 247 Average Temperature 30 | 8 28 46 Received Heat Transfer 268 | . 168 100 Siege Activations . | . . . Robots Corrupted . | . . . Combat Hostiles . | . . . Parts Fried 2 | . 2 . Impact Corruptions . | . . . Robots Melted . | . . . Combat Hostiles . | . . . Parts Melted . | . . . Heat Transferred 150 | . 150 . Parts Sabotaged . | . . . Parts Stolen . | . . . Parts Stripped . | . . . Power Chain Reactions 2 | . 2 . Missiles Intercepted . | . . . Alert | -11 -10 -10 ------- Run | Scr Mat Min Peak Influence 233 | 35 233 175 Initial 22 | . 22 . Average 88 | 17 88 146 Maximum Alert Level 1 | . 1 . Low Security (%) 98 | 100 98 100 Level 1 1 | . 1 . Level 2 . | . . . Level 3 . | . . . Level 4 . | . . . Level 5 . | . . . High Security . | . . . Max Security . | . . . Squads Dispatched 1 | . 1 . Investigation 1 | . 1 . Extermination . | . . . Reinforcement . | . . . Assault . | . . . Garrison . | . . . Intercept . | . . . Searches Triggered . | . . . Construction Impeded . | . . . Haulers Reinforced . | . . . Active Scanning Responses . | . . . Cargo Convoy Interrupts . | . . . Stealth | -11 -10 -10 --------- Run | Scr Mat Min Distress Signals 1 | . 1 . Communications Jammed . | . . . Distress Signals . | . . . Times Spotted 28 | . 13 15 Peak Tracking Total 5 | . 4 5 Tactical Retreats . | . . . Traps | -11 -10 -10 ------- Run | Scr Mat Min Traps Triggered . | . . . Indirectly . | . . . Trap Hack Attempts . | . . . Triggered . | . . . Disarmed . | . . . Reprogrammed . | . . . Reused . | . . . Traps Extracted . | . . . Installed . | . . . Triggered . | . . . Machines | -11 -10 -10 ---------- Run | Scr Mat Min Machines Disabled 3 | . 3 . Max in Single Turn 1 | . 1 . Machines Sabotaged . | . . . Garrisons Compromised . | . . . Overloaded Fab Kills . | . . . Hacking | -11 -10 -10 --------- Run | Scr Mat Min Machines Accessed 10 | . 10 . Terminals 7 | . 7 . Fabricators . | . . . Repair Stations 1 | . 1 . Recycling Units 2 | . 2 . Scanalyzers . | . . . Garrison Access . | . . . Total Hacks 30 | . 30 . Successful 21 | . 21 . Failed 9 | . 9 . Catastrophic . | . . . Database Lockouts . | . . . Manual 18 | . 18 . Terminals 21 | . 21 . Fabricators . | . . . Repair Stations 4 | . 4 . Recycling Units 5 | . 5 . Scanalyzers . | . . . Garrison Access . | . . . Terminal Hacks 8 | . 8 . Prototype ID Bank 2 | . 2 . Terminal Index 1 | . 1 . Recycling Unit Index 1 | . 1 . Transport Status 1 | . 1 . Recall Investigation 1 | . 1 . Hauler Manifests 1 | . 1 . Zone Layout 1 | . 1 . Fabricator Hacks . | . . . Repair Station Hacks 4 | . 4 . Scan Component 2 | . 2 . Repair 2 | . 2 . Recycling Unit Hacks . | . . . Scanalyzer . | . . . Garrison Access Hacks . | . . . Unauthorized Hacks 9 | . 9 . Terminals 5 | . 5 . Track 2 | . 2 . Botnet 3 | . 3 . Fabricators . | . . . Repair Stations . | . . . Recycling Units 4 | . 4 . Reject 2 | . 2 . Mask 2 | . 2 . Scanalyzers . | . . . Garrison Access . | . . . Data Cores Recovered . | . . . Used . | . . . Hacking Detections 9 | . 9 . Full Trace Events 2 | . 2 . Feedback Events . | . . . Feedback Blocked . | . . . Robot Schematics Acquired . | . . . Robots Built . | . . . Authchips . | . . . Time . | . . . Total Robot Build Rating . | . . . Part Schematics Acquired . | . . . Parts Built . | . . . Authchips . | . . . Time . | . . . Total Part Build Rating . | . . . Parts Repaired 2 | . 2 . Time 52 | . 52 . Parts Recycled . | . . . Recycled Matter . | . . . Retrieved Matter . | . . . Retrieved Components . | . . . Parts Scanalyzed . | . . . Part Schematics Acquired . | . . . Parts Damaged . | . . . Bothacking | -11 -10 -10 ------------ Run | Scr Mat Min Used RIF Installer . | . . . Robots Hacked . | . . . Non-combat . | . . . Combat . | . . . Robot Hacks Applied . | . . . Relay Couplers Released . | . . . Fabnet Peak Effective % . | . . . Robots Rewired . | . . . Allies Hacked . | . . . Hacks Repelled . | . . . Allies | -11 -10 -10 -------- Run | Scr Mat Min Total Allies . | . . . Largest Group . | . . . Highest-Rated Group . | . . . Highest-Rated Ally . | . . . Total Orders . | . . . Ally Attacks . | . . . Total Damage . | . . . Kills . | . . . Allies Corrupted . | . . . Allies Melted . | . . . Intel | -11 -10 -10 ------- Run | Scr Mat Min Robot Analysis Total . | . . . Derelict Logs Recovered 1 | . . 1 Drone Launches . | . . . Drone Recoveries . | . . . Exploration | -11 -10 -10 ------------- Run | Scr Mat Min Turns Passed 2338 | 214 1828 296 Spaces Moved 1128 | 103 920 105 Core 20 | 20 . . Treads 1108 | 83 920 105 Legs . | . . . Wheels . | . . . Hover . | . . . Flight . | . . . Fastest Speed 50 | 50 160 160 Average Speed 158 | 138 160 160 Slowest Speed 160 | 160 160 160 Overloaded Moves . | . . . Propulsion Burnouts . | . . . Robots Hopped . | . . . Cave-ins Triggered . | . . . Exploration Rate (%) 39 | 6 85 28 Regions Visited 2 Branch Regions 1 Pre-discovered Areas . | . . . Known Exits Taken . | . . . Unknown Exits Taken 2 | 1 1 . Scrap Searched 2 | . . 2 Spaces Dug 25 | . . 25 Terrain Destroyed 108 | . 40 68 Melee . | . . . Projectile . | . . . AOE 108 | . 40 68 Terrain Rammed . | . . . Walls Destroyed . | . . . Machines Disabled . | . . . Actions | -11 -10 -10 --------- Run | Scr Mat Min Total 1509 | 139 1199 171 Wait 212 | 3 199 10 Move 1126 | 102 919 105 Hop . | . . . Pick Up 23 | 8 13 2 Fast Attach 2 | 2 . . Attach 12 | 4 5 3 Detach . | . . . Swap 19 | 1 12 6 Drop 5 | . 4 1 Fire 109 | 19 46 44 Melee . | . . . Ram . | . . . Kick . | . . . Crush 1 | . 1 . Escape Stasis . | . . . Rewire . | . . . Trap . | . . . Miscellaneous . | . . . Route ------- -11/Scrapyard -10/Materials (discovered 3 exits: [*Mat x2] / [*Min]) -10/Mines (discovered 1 exit: [*Mat]) History --------- Turn | Location | Event 3 | -11/Scrapyard | Discovered new exit (range 15) 215 | -11/Scrapyard | Entered Materials 312 | -10/Materials | Build established: Mutant 873 | -10/Materials | Repaired EM Pulse Gun 901 | -10/Materials | Repaired Lgt. Treads 1187 | -10/Materials | Discovered new exit (range 15) 1493 | -10/Materials | Discovered new exit (range 15) 1650 | -10/Materials | Discovered new exit (range 15) 2043 | -10/Materials | Entered Mines 2071 | -10/Mines | Met a Derelict bent on vengeance 2075 | -10/Mines | Discovered new exit (range 6) 2123 | -10/Mines | Assembled infested the area 2164 | -10/Mines | Core integrity fell below 50% 2200 | -10/Mines | Core integrity fell below 20% 2252 | -10/Mines | Learned Materials trap positions 2254 | -10/Mines | Destroyed 8 combat bots 2339 | -10/Mines | Destroyed by as-15463 with Assembled Rifle Last Messages --------------- 02281_ System corrupted by crushing effect (+5). 02289_ Destroyed Asb. Hover Unit. 02291_ as-23819 destroyed. 02293_ K-01 Serf collects debris. 02299_ System corrupted: Matter fused (-8). 02299_ K-01 Serf collects debris. 02300_ U-05 Engineer lays Concrete. 02301_ U-05 Engineer builds a Wall. 02303_ K-01 Serf collects debris. 02304_ U-05 Engineer forms the Earth. 02305_ Acquired Corrupted Lgt. Assault Rifle. 02305_ U-05 Engineer builds a Wall. 02306_ K-01 Serf collects debris. 02306_ Integrated Corrupted Lgt. Assault Rifle (+1). 02306_ Complication: Energy sink damages Corrupted Lgt. Assault Rifle (-15). 02307_ K-01 Serf collects debris. 02316_ Acquired 20 matter. 02335_ Ion Engine destroyed. 02338_ System corrupted: Heat flow error (+262). Map ----- +----------------------------------------------------+ | ?????????????????????????????????????????????????? | | ?????????????????????????????????????????????????? | | ?????????????????????????????????????????????????? | | ?????????????????????????????????????????????????? | | ?????????????????????????????????????????????????? | | ?????????????????????????????????????????????????? | | ?????????????????????????????????????????????????? | | ?????????????????????????????????????????????????? | | ?????????????????????????????????????????????????? | | ?????????????????????????????????????????????????? | | ?????????????????????????????????????????????????? | | ?????????????????????????????????????????????????? | | ?????????????????????????????????????????????????? | | ?????????????????????????????????####????#???????? | | ???????????????????????????????? ##??# #?????? | | ??????????????????????????????? ### #????? | | ???????????????????????#???????? ???? | | ???????????????????????# ??????? % ??? | | ???????????????????????# ???????? ??? | | ???????????????????????# ???????? ???? | | ???????????????????????#a????????# % #????? | | ???????????????????????# ????????# % #?????? | | ???????????????????????# ##??????# % #??????? | | ??????????????????????## ######## #???????? | | ??????????????????????# = ! #????????? | | ??????????????????????# @ = % #????????? | | ??????????????????????# #### # #????????? | | ??????????????????????## < #?# ## ###???????? | | ???????????????????????# % ## ## #???????? | | ???????????????????????# ## # #???????? | | ???????????????????????# = ###### # #???????? | | ???????????????????????#=%###????# % #???????? | | ???????????????????????#!|#?????## #???????? | | ??????????????????????? ????## # ###?????? | | ??????????????????????? ????# ### ###???? | | ?????????????????????? #???# ## # ##??? | | ??????????????????????####???# #### # #??? | | ????????????????????????????# #???#### #??? | | ???????????????????????????# #????## # #??? | | ?????????????????????????? #????## #??? | | ????????????????????????? ????## ##??? | | ????????????????????????? ?????# # #???? | | ?????????????????????????? ??????# # ##???? | | ?????????????????????????? ???##### ##????? | | ??????????????????????????????##! # ##?????? | | ??????????????????????????????# ! = #??????? | | ??????????????????????????????# =##### # ##??????? | | ??????????????????????????????# #???#####???????? | | ????????????????????????????### #???????????????? | | ?????????????????????????#### #???######??????? | +----------------------------------------------------+ Best States ------------- Heat Dissipation 25 Energy Generation 10 Energy Capacity 250 Matter Stores 300 Matter Capacity 300 Sight Range 16 Terrain Scan Density 10 Evasion (%) 50 Recoil Reduction 2 Authchip Count 1 Item Schematics ----------------- None Robot Schematics ------------------ None Fabricated ------------ Nothing Alien Tech Used ----------------- None Achievements -------------- None Challenges ------------ None Game ------ Seed MinesnifferRecyclingBox Manual? 0 Play Time 00:19:08 Cumulative 38.6 hours Start 2022.11.06 @ 10:35:54 End 2022.11.06 @ 10:51:42 Sessions 1 Manual Loads 0 Difficulty Rogue Special Mode None Game No. 65 Rogue 65 Adventurer 0 Explorer 0 Win Type - Total 0 Types 0/0/0/0/0/0/0/0/0 Lore% 19 Gallery% 24 Achievement% 26 Wizard Run 0 Options --------- ASCII 0 Keyboard 0 Movement Numpad Keybinds 0 Fullscreen 2 Font 18/TerminusBold Map View 76x50 Tactical HUD 1 Map Filters NONE Filters NONE Steam 1 RUN: e38cbd0f-0f45-4232-841a-b59808cb9bae